Workbook

Sheet Menu principal
G1: Diseñado por Ing. Gregor Rojas Caracas - Venezuela
A2: PROGRAMA DE CÁLCULO DE LA MALLA DE PUESTA A TIERRA BASADO EN LA IEEE 80-2000
A3: DATOS PARA EL CÁLCULO DE LA MALLA DE PUESTA A TIERRA
B4: Instructivo de uso del programa
B5: Resistencia requerida según aplicación menor a (W) | F5: =IF(U5=1,$T$6,IF(U5=2,$T$7,$T$8)) -> 1 | U5: 1
A6: ρ | B6: Resistividad aparente del terreno (Ω.m) | F6: =S6 -> 10 | S6: 10 | T6: 1 | U6: Subestaciones de alta y extra alta tensión
A7: If | B7: Corriente de falla a tierra simétrica rms (A) | F7: =$S$9 -> 1000 | T7: 10 | U7: Subestaciones de media tensión
A8: tc | B8: Tiempo de despeje de la falla (ms) | F8: =S8 -> 50 | S8: 50 | T8: 20 | U8: Estructuras de líneas de transmisión
B9: Marque la casilla si existe una capa superficial | F9: =IF($U$9=TRUE,$W$9,$W$10) -> SI | S9: =$T$9*2 -> 1000 | T9: 500 | U9: TRUE | W9: SI
A10: ρs | B10: Resistividad de la capa superficial (Ω.m) Ver tabla 7 | F10: =IF($U$9=TRUE,$T$10,$F$6) -> 100 | T10: =2*$U$10 -> 100 | U10: 50 | W10: NO
A11: hs | B11: Espesor de la capa superficial hs (cm) | F11: =S11 -> 5 | S11: 5
B12: Recuerde borrar operaciones anteriores para reiniciar cálculos
A13: CARACTERISTICAS DEL CONDUCTOR DE LA MALLA DE PAT
B14: Tipo de conductor seleccionado | G14: =U14 -> 1 | U14: 1
A15: Kf | B15: Constante del material conductor a utilizar en la PAT | F15: ='TABLA 2'!E52 -> 7 | G15: Tabla 2 Pag. 44 IEEE 80-2000
A16: Amm2 | B16: Área calculada del conductor a utilizar en la malla (mm2) | F16: =((($F$7/1000)*$F$15*SQRT($F$8/1000)))/1.974 -> 0.7929319069 | G16: Formula 40 Y 41 Pag. 43 IEEE 80-2000
A17: d | B17: Diámetro del conductor a utilizar en la malla de PAT (mm) | F17: =IF($F$18="2/0 AWG",materiales!$F$10,IF($F$18="3/0 AWG",materiales!$F$11,IF($F$18="4/0 AWG",materiales!$F$12,IF($F$18="250Kcmil",materiales!$F$13,IF($F$18="300Kcmil",materiales!$F$14,IF($F$18="350Kcmil",materiales!$F$15,materiales!$F$16)))))) -> 10.63 | G17: Por requerimientos mecánicos
B18: Calibre conductor a utilizar en malla de puesta a tierra | F18: =IF($F$16<materiales!G10,"2/0 AWG",IF($F$16<materiales!G11,"3/0 AWG",IF($F$16<materiales!G12,"4/0 AWG",IF($F$16<materiales!G13,"250Kcmil",IF($F$16<materiales!G14,"300Kcmil",IF($F$16<materiales!G15,"350Kcmil",IF($F$16<materiales!G16,"500Kcmil","Revisar"))))))) -> 2/0 AWG | G18: Código GEDISA | H18: =IF($F$16<materiales!$G$10,materiales!$B$10,IF($F$16<materiales!$G$11,materiales!$B$11,IF($F$16<materiales!$G$12,materiales!$B$12,IF($F$16<materiales!$G$13,materiales!$B$13,IF($F$16<materiales!$G$14,materiales!$B$14,IF($F$16<materiales!$G$15,materiales!$B$15,IF($F$16<materiales!$G$16,materiales!$B$16,"REPLANTEAR"))))))) -> CBDES0100200
A19: GEOMETRIA DE LA MALLA
A20: a | B20: Cuadrada | E20: Largo (m) | F20: =T20 -> 5 | G20: 3 | T20: 5
A21: b | B21: Rectangular | E21: Ancho (m) | F21: =IF(G20=1,F20,IF(G20=2,G21,IF(G20=3,G21,G21))) -> 5 | G21: 5
A22: L1 | B22: En forma de L | E22: L1 (m) | F22: =IF(G20=1,0,IF(G20=2,0,G22)) -> 3 | G22: 3
A23: L2 | E23: L2 (m) | F23: =IF(G20=1,0,IF(G20=2,0,G23)) -> 3 | G23: 3
A24: D | B24: Longitud de los lados de la cuadrícula (m) | F24: =T24 -> 1 | T24: 1
A25: h | B25: Profundidad de enterramiento de la malla (cm) | F25: =T25 -> 30 | G25: =F20*F21 -> 25 | T25: 30
A26: A | B26: Área de la malla de PAT (m2) | F26: =IF(G20=1,G25,IF(G20=2,G25,(F20*F22)+F23*(F21-F22))) -> 21 | G26: =ROUNDUP(($F$28-2)*($F$30-2),0) -> 16 | H26: =ROUNDUP(($F$28-2)*($F$30-2)-(($F$20-$F$22)/$F$24)*(($F$21-$F$23)/$F$24),0) -> 12
A27: Lp | B27: Longitud del perímetro (m) | F27: =(F20+F21)*2 -> 20
B28: Número de conductores en el sentido longitudinal o "X" | F28: =((F20/F24)+1) -> 6
A29: Lx | B29: Longitud Máxima del Conductor en el sentido de "X" (m) | F29: =(F20*(F20+F24-F22)+F22*(F22-F24))/F24 -> 21
B30: Número de conductores en el sentido transversal o "Y" | F30: =(F21/F24)+1 -> 6
A31: Ly | B31: Longitud Máxima del Conductor en el sentido de "Y" (m) | F31: =(F21*(F21+F24-F23)+F23*(F23-F24))/F24 -> 21 | U31: FALSE | W31: SI
A32: LC | B32: Longitud Conductor Horizontal De La Malla (m) | F32: =F29+F31 -> 42 | W32: NO
B33: Empleo de barras copperweld o jabalinas | F33: =IF($U$31=TRUE,$W$31,$W$32) -> NO
B34: Modelo de barra copperweld | U34: 1
A35: dr | B35: Diámetro de la Barra Copperweld o jabalina (mm) | F35: =IF($U$31=TRUE,G35,"0") -> 0 | G35: =IF($U$34=1,$T$35,IF($U$34=2,$T$36,$T$37)) -> 14.2875 | T35: =(25.4*9/16) -> 14.2875 | U35: Barra copperweld de 9/16"
A36: Lr | B36: Longitud de la Barra Copperweld o jabalina (m) | F36: =IF($U$31=TRUE,G36,"0") -> 0 | G36: =H36/100 -> 2.4 | H36: 240 | T36: =(25.4*5/8) -> 15.875 | U36: Barra copperweld de 5/8"
A37: GEOMETRIA DE LA MALLA CONTINUACION | T37: =(25.4*3/4) -> 19.05 | U37: Barra copperweld de 3/4"
A38: nR | B38: Número de barras copperweld colocadas en el área A | F38: =IF($U$31=TRUE,$G$38,"0") -> 0 | G38: 1
A39: LR | B39: Longitud total de las Barras Copperweld o Jabalinas (m) | F39: =IF($U$31=TRUE,$F$38*$F$36,"0") -> 0
A40: LM | B40: Longitud efectiva sin barras o con ellas no ubicadas en esquinas (m) | F40: =$F$32+$F$39 -> 42 | G40: Formula 90 Pag. 94 IEEE 80-2000
A41: LM | B41: Longitud efectiva con barras en el perímetro y esquinas (m) | F41: =$F$32+(1.55+1.22*($F$36/SQRT((F29^2)+($F$31^2))))*$F$39 -> 42 | G41: Formula 91 Pag. 94 IEEE 80-2000
A42: LS | B42: Longitud efectiva con barras copperweld o sin ellas (m) | F42: =0.75*F32+0.85*F39 -> 31.5 | G42: Formula 93 Pag. 94 IEEE 80-2000
A43: MOLDES Y CARTUCHOS PARA SOLDADURA EXOTERMICA
A44: CX | B44: Cantidad de conexiones exotérmicas en EQUIS | F44: =IF($G$20=1,$G$26,IF($G$20=2,$G$26,IF($G$20=3,$H$26,$H$26))) -> 12 | G44: Código GEDISA | H44: =IF($F$18="2 AWG",materiales!B25,IF($F$18="1/0 AWG",materiales!B27,IF($F$18="2/0 AWG",materiales!B28,IF($F$18="3/0 AWG",materiales!B29,IF($F$18="4/0 AWG",materiales!B29,IF($F$18="250Kcmil",materiales!B27,IF($F$18="300Kcmil",materiales!B28,IF($F$18="350Kcmli",materiales!B29,IF($F$18="500Kcmil",REVISAR,"REPLANTEAR"))))))))) -> PTCE000200
A45: MX | B45: Molde de grafito para conexión exotérmica en EQUIS | F45: =ROUNDUP(($F$44/40),0) -> 1 | G45: Código GEDISA | H45: =IF($F$18="2 AWG",materiales!B33,IF($F$18="1/0 AWG",materiales!B34,IF($F$18="2/0 AWG",materiales!B35,IF($F$18="3/0 AWG",materiales!B36,IF($F$18="4/0 AWG",materiales!B37,IF($F$18="250Kcmil",materiales!B38,IF($F$18="300Kcmil",materiales!B39,IF($F$18="350Kcmli",materiales!B40,IF($F$18="500Kcmil",REVISAR,"REPLANTEAR"))))))))) -> PTXSH070070
A46: CT | B46: Cantidad de conexiones exotérmicas en TEE | F46: =ROUNDUP(2*($F$28-2)+2*($F$30-2),0)+4 -> 20 | G46: Código GEDISA | H46: =IF($F$18="2 AWG",materiales!B22,IF($F$18="1/0 AWG",materiales!B25,IF($F$18="2/0 AWG",materiales!B25,IF($F$18="3/0 AWG",materiales!B26,IF($F$18="4/0 AWG",materiales!B27,IF($F$18="250Kcmil",materiales!B27,IF($F$18="300Kcmil",materiales!B28,IF($F$18="350Kcmli",materiales!B28,IF($F$18="500Kcmil",REVISAR,"REPLANTEAR"))))))))) -> PTCE000090
A47: MT | B47: Molde de grafito para conexión exotérmica en TEE | F47: =ROUNDUP(($F$46/40),0) -> 1 | G47: Código GEDISA | H47: =IF($F$18="2 AWG",materiales!B43,IF($F$18="1/0 AWG",materiales!B44,IF($F$18="2/0 AWG",materiales!B45,IF($F$18="3/0 AWG",materiales!B46,IF($F$18="4/0 AWG",materiales!B47,IF($F$18="250Kcmil",materiales!B48,IF($F$18="300Kcmil",materiales!B49,IF($F$18="350Kcmli",materiales!B50,IF($F$18="500Kcmil",REVISAR,"REPLANTEAR"))))))))) -> PTCTH070070
A48: CÁLCULO DE RESISTENCIA DE PUESTA A TIERRA
A49: Rm | B49: Resistencia de malla (W) | F49: =$F$6*((1/($F$32+$F$39))+(1/SQRT(20*$F$26))*(1+(1/(1+($F$25/100)*SQRT(20/$F$26))))) -> 1.103490627 | G49: Formula 52 Pag. 65 IEEE 80-2000 | R49: p((1/LT)+ (1/raiz20A)*(1 + (1/(1+hraiz(20/A)))) | U49: =IF($U$34=1,"Barra copperweld 9/16",IF($U$34=2,"Barra copperweld 5/8","Barra copperweld 3/4")) -> Barra copperweld 9/16
A50: Rr | B50: Resistencia de la barra copperweld seleccionada (W) | F50: =IF($U$31=TRUE,$T$50,"0") -> 0 | G50: =IF($U$31=TRUE,$U$49,$U$51) -> Sin barras copperweld | T50: =($F$6/(2*3.14*$F$36))*LN((8*$F$36/($F$35/100))-1) ->  | U50: Con barras copperweld
A51: Rg | B51: Resistencia equivalente del sistema de PAT (W) | F51: =IF($U$31=TRUE,$T$51,$F$49) -> 1.103490627 | G51: =IF($U$31=TRUE,$U$50,$U$51) -> Sin barras copperweld | T51: =1/(((1/$F$50)*$F$38)+(1/$F$49)) ->  | U51: Sin barras copperweld
A52: CÁLCULO DE CORRIENTE MAXIMA DE MALLA
A53: IG | B53: Máxima corriente de malla (A) | F53: =$F$55*$F$54 -> 258.72 | G53: Formula 63 Y 64 Pag. 73 IEEE 80-2000 | T53: IG= | U53: Df*Ig | V53: Df*(Sf*3I0)
A54: Ig | B54: Corriente de malla simétrica rms (A) | F54: =$F$58*$F$7 -> 210 | G54: Formula 65 Pag. 73 IEEE 80-2000
A55: Df | B55: Factor de decremento para la determinación de IG | F55: =INDEX('TABLA 10'!C4:F12,'Menu principal'!U56,'Menu principal'!U57) -> 1.232 | G55: Formula 79 Pag. 84 IEEE 80-2000
A56: X/R | B56: Valores típicos de la Relación X/R | G56: Tabla 10 Pag. 85 IEEE 80-2000 | U56: 2
A57: tf | B57: Valores típicos del Tiempo de duración de la falla (Seg) | G57: Tabla 10 Pag. 85 IEEE 80-2000 | U57: 1
A58: Sf | B58: Factor divisor de la corriente de falla | F58: 0.21 | G58: Formula 63 Pag. 72 IEEE 80-2000
A59: CÁLCULO DE VOLTAJES PERMISIBLES DE PASO Y TOQUE
B60: Peso de la persona para estimación
A61: Ep | B61: Voltaje de paso tolerable (V) | F61: =IF(U61=1,(1000+6*$F$63*$F$10)*0.116/SQRT($F$8/1000),(1000+6*$F$63*$F$10)*0.157/SQRT($F$8/1000)) -> 943.8042795 | G61: Formula 29 y 30 Pag. 27 IEEE 80-2000 | R61: (1000+6Cs*ps)*0,157 / raíz(ts) | U61: 2
A62: Et | B62: Voltaje de toque tolerable (V) | F62: =IF(U61=1,(1000+1.5*$F$63*$F$10)*0.116/SQRT($F$8/1000),(1000+1.5*$F$63*$F$10)*0.157/SQRT($F$8/1000)) -> 762.5450786 | G62: Formula 32 y 33 Pag. 27 IEEE 80-2000 | R62: (1000+1,5Cs*ps)*0,157 / raíz(ts) | U62: Persona de 50 kg
A63: Cs | B63: Factor de decremento de la capa superficial | F63: =1-(0.09*(1-($F$6/$F$10))/((2*$F$11/100)+0.09)) -> 0.5736842105 | G63: Formula 27 Pag. 23 IEEE 80-2000 | R63: 1-((0,09*(1-p/ps))/(2*hs+0,09)) | U63: Persona de 70 kg
A64: CÁLCULO DE VOLTAJES MAXIMOS DE PASO Y TOQUE
A65: GPR | B65: Máxima elevación del potencial de tierra GPR (V) | F65: =$F$51*$F$53 -> 285.495095
A66: Em | B66: Voltaje de malla en caso de falla (V) | F66: =$F$6*$F$75*$F$78*$F$53/$F$41 -> 44.50941568 | G66: Formula 80 Pag. 91 IEEE 80-2000 | R66: ρ*Km*Ki*IG / LM
A67: Es | B67: Voltaje de paso en caso de falla (V) | F67: =$F$6*$F$79*$F$78*$F$53/$F$42 -> 117.481751 | G67: Formula 92 Pag. 94 IEEE 80-2000 | R67: ρ*Ks*Ki*IG / Ls
A68: CÁLCULO DE FACTORES GEOMETRICOS
A69: n | B69: Factor geométrico compuesto de factores: na, nb, nc y nd | F69: =F70*F71*F72*F73 -> 4.855717873 | G69: Formula 84 Pag. 93 IEEE 80-2000
A70: na | B70: Factor geométrico | F70: =2*$F$32/$F$27 -> 4.2 | G70: Formula 85 Pag. 93 IEEE 80-2000
A71: nb | B71: Factor geométrico | F71: =IF($G$20=1,1,IF($G$20=2,(SQRT($F$27/(4*SQRT($F$26)))),(SQRT($F$27/(4*SQRT($F$26)))))) -> 1.044552273 | G71: Formula 86 Pag. 93 IEEE 80-2000
A72: nc | B72: Factor geométrico | F72: =IF($G$20=1,1,IF($G$20=2,1,($F$29*$F$31/$F$26)^(0.7*$F$26/($F$29*$F$31)))) -> 1.106812299 | G72: Formula 87 Pag. 93 IEEE 80-2000
A73: nd | B73: Factor geométrico | F73: =IF($G$20=1,1,IF($G$20=2,1,(1))) -> 1 | G73: Formula 88 Pag. 93 IEEE 80-2000
A74: CÁLCULO DE FACTORES CORRECCION
A75: Km | B75: Factor de separación para el voltaje de la malla | F75: =(1/(2*3.14))*((LN((($F$24^2/(16*($F$17/1000)*($F$25/100))))+($F$24+2*($F$25/100))^2/(8*$F$24*($F$17/1000))-($F$25/100)/(4*($F$17/1000))))+($F$76/$F$77)*LN(8/(PI()*((2*$F$69)-1)))) -> 0.5302590103 | G75: Formula 81 Pag. 93 IEEE 80-2000 | R75: =(1/(2*3.14))*(LN(($F$24^2/(16*($F$17/1000)*($F$25/100))))+($F$24+2*($F$25/100))^2/(8*$F$24*($F$17/1000))-($F$25/100)/(4*($F$17/1000)))+($F$76/$F$77)*LN(8/(PI()*((2*$F$69)-1))) -> 3.720938417
A76: Kii | B76: Factor de ponderación correctiva que se ajusta a los efectos de los conductores internos en la esquina de la malla | F76: =IF($H$38=TRUE,1,(1/(2*$F$69)^(2/$F$69))) -> 0.3920597172 | G76: Formula 82 Pag. 93 IEEE 80-2000
A77: Kh | B77: Factor de ponderación correctiva que hace hincapié en los efectos de la profundidad de la red | F77: =SQRT(1+$F$25/100) -> 1.140175425 | G77: Formula 83 Pag. 93 IEEE 80-2000
A78: Ki | B78: Factor de corrección por geometría de la malla | F78: =0.644+0.148*$F$69 -> 1.362646245 | G78: Formula 89 Pag. 94 IEEE 80-2000
A79: Ks | B79: Factor de separación para el voltaje de paso | F79: =(1/PI())*((1/(2*$F$25/100))+(1/($F$24+$F$25/100))+(1/$F$24)*(1-0.5^($F$69-2))) -> 1.049706383 | G79: Formula 94 Pag. 94 IEEE 80-2000
A80: EVALUACION DE RESULTADOS
A81: 1 | B81: ¿La resistencia de puesta a tierra Rg obtenida es menor que la resistencia requerida? | F81: =IF($F$51<$F$5+0.1,"Sí, el diseño cumple con el requerimiento","No, el diseño no cumple con el requerimiento, ¡MODIFICAR SU DISEÑO!") -> No, el diseño no cumple con el requerimiento, ¡MODIFICAR SU DISEÑO!
A82: 2 | B82: ¿Es GPR menor que el voltaje de contacto tolerable? | F82: =IF(F65<F62,"Sí, el diseño cumple con el requerimiento","Verifique el voltaje de malla (Em)") -> Sí, el diseño cumple con el requerimiento
A83: 3 | B83: Bajo condiciones de falla, ¿Es el voltaje de malla (Em) menor que el voltaje de contacto tolerable (Et)? | F83: =IF(F66<F62,"Sí, el voltaje de malla cumple con el requerimiento","NO, REPLANTEAR DISEÑO") -> Sí, el voltaje de malla cumple con el requerimiento | R83: F61<F57
A84: 4 | B84: Bajo condiciones de falla ¿Es el voltaje de paso (Es) menor que el voltaje de paso tolerable (Ep)? | F84: =IF(F83="Sí, el voltaje de malla cumple con el requerimiento",IF(F67<F61,"Sí, el voltaje de paso cumple con el requerimiento","NO, el voltaje de paso no cumple con norma, Modificar diseño"),"REPLANTEAR TODO EL DISEÑO") -> Sí, el voltaje de paso cumple con el requerimiento | R84: F62<F56
H86: Agradesco cualquier sugerencia para mejorar este programa
H87: enviandola a gregorrojas@gedisa.com.ve
C92: Descarga desde www.gedisa.com.ve el manual de sistemas de puesta a tierra GEDIWELD donde encontraras todos los materiales referidos a puesta a tierra

Sheet TABLA 1
A1: TABLE 1 IEEE 80-2000 MATERIAL CONSTANTS
A2: Description | B2: Material conductivity (%) | C2: αr factor at 20 °C (1/°C) | D2: Ko at 0 °C (0 °C) | E2: Fusinga temperature Tm (°C) | F2: ρr 20 °C (µΩ·cm) | G2: TCAP thermal capacity [J/(cm3·°C)]
A3: Copper, annealed soft-drawn | B3: 100 | C3: 0.00393 | D3: 234 | E3: 1083 | F3: 1.72 | G3: 3.42
A4: Copper, commercial hard-drawn | B4: 97 | C4: 0.00381 | D4: 242 | E4: 1084 | F4: 1.78 | G4: 3.42
A5: Copper-clad steel wire | B5: 40 | C5: 0.00378 | D5: 245 | E5: 1084 | F5: 4.4 | G5: 3.85 | J5: i | K5: 20
A6: Copper-clad steel wire | B6: 30 | C6: 0.00378 | D6: 245 | E6: 1084 | F6: 5.86 | G6: 3.85 | J6: tc | K6: 3
A7: Copper-clad steel rodb | B7: 20 | C7: 0.00378 | D7: 245 | E7: 1084 | F7: 8.62 | G7: 3.85
A8: Aluminum, EC grade | B8: 61 | C8: 0.00403 | D8: 228 | E8: 657 | F8: 2.86 | G8: 2.56
A9: Aluminum, 5005 alloy | B9: 53.5 | C9: 0.00353 | D9: 263 | E9: 652 | F9: 3.22 | G9: 2.6 | J9: =K5 -> 20 | K9: =K5 -> 20
A10: Aluminum, 6201 alloy | B10: 52.5 | C10: 0.00347 | D10: 268 | E10: 654 | F10: 3.28 | G10: 2.6 | I10: 1 | J10: =(G6/10000)/(K6*C6*F6) -> 0.005793620697 | K10: =(G6)/(K6*C6*F6) -> 57.93620697
A11: Aluminum-clad steel wire | B11: 20.3 | C11: 0.0036 | D11: 258 | E11: 657 | F11: 8.48 | G11: 3.58 | J11: =(D6+E6)/(D6+40) -> 4.663157895 | K11: =(D6+E6)/(D6+40) -> 4.663157895
A12: Steel, 1020 | B12: 10.8 | C12: 0.0016 | D12: 605 | E12: 1510 | F12: 15.9 | G12: 3.28 | I12: 2 | J12: =LN(J11) -> 1.539692878 | K12: =LN(K11) -> 1.539692878
A13: Stainless-clad steel rodc | B13: 9.8 | C13: 0.0016 | D13: 605 | E13: 1400 | F13: 17.5 | G13: 4.44 | J13: =SQRT(J10*J12) -> 0.09444785084 | K13: =SQRT(K10*K12) -> 9.444785084
A14: Zinc-coated steel rod | B14: 8.6 | C14: 0.0032 | D14: 293 | E14: 419 | F14: 20.1 | G14: 3.93 | J14: =J9/J13 -> 211.7570683 | K14: =K9*197.4/K13 -> 418.0084528
A15: Stainless steel, 304 | B15: 2.4 | C15: 0.0013 | D15: 749 | E15: 1400 | F15: 72 | G15: 4.03
A16: a From ASTM standards.
A17: b Copper-clad steel rods based on 0.254 mm (0.010 in) copper thickness.
A18: c Stainless-clad steel rod based on 0.508 mm (0.020 in) No. 304 stainless steel thickness over No. 1020 steel core.
G24: Agradezco cualquier sugerencia para mejorar este programa
G25: Gregor Rojas

Sheet TABLA 2
A1: TABLE 2 IEEE 80-2000 MATERIAL CONSTANTS | E1: TABLA 2 IEEE 80-2000 CONSTANTES DE MATERIALES
A2: Material | B2: Conductivity (%) | C2: Tm a (°C) | D2: Kf | E2: Material | F2: Conductividad (%) | G2: Tm a (°C) | H2: Kf
A3: Copper, annealed soft-drawn | B3: 100 | C3: 1083 | D3: 7 | E3: Cobre blando, recocido suave | F3: 100 | G3: 1083 | H3: 7
A4: Copper, commercial hard-drawn | B4: 97 | C4: 1084 | D4: 7.06 | E4: Cobre duro comercial, cuando se utiliza solddura exotérmica | F4: 97 | G4: 1084 | H4: 7.06
A5: Copper, commercial hard-drawn | B5: 97 | C5: 250 | D5: 11.78 | E5: Cobre duro comercial, cuando se utilizan conexiones mecánicas a presión | F5: 97 | G5: 250 | H5: 11.78
A6: Copper-clad steel wire | B6: 40 | C6: 1084 | D6: 10.45 | E6: Alambre de acero revestido de cobre | F6: 40 | G6: 1084 | H6: 10.45
A7: Copper-clad steel wire | B7: 30 | C7: 1084 | D7: 12.06 | E7: Alambre de acero revestido de cobre | F7: 30 | G7: 1084 | H7: 12.06
A8: Copper-clad steel rod | B8: 20 | C8: 1084 | D8: 14.64 | E8: Varilla de acero revestido de cobre | F8: 20 | G8: 1084 | H8: 14.64
A9: Aluminum EC Grade | B9: 61 | C9: 657 | D9: 12.12 | E9: Aluminio CE Grado | F9: 61 | G9: 657 | H9: 12.12
A10: Aluminum 5005 Alloy | B10: 53.5 | C10: 652 | D10: 12.41 | E10: Aluminio 5005 Aleación | F10: 53.5 | G10: 652 | H10: 12.41
A11: Aluminum 6201 Alloy | B11: 52.5 | C11: 654 | D11: 12.47 | E11: Aluminio 6201 Aleación | F11: 52.5 | G11: 654 | H11: 12.47
A12: Aluminum-clad steel wire | B12: 20.3 | C12: 657 | D12: 17.2 | E12: Alambre de acero revestido de aluminio | F12: 20.3 | G12: 657 | H12: 17.2
A13: Steel 1020 | B13: 10.8 | C13: 1510 | D13: 15.95 | E13: acero 1020 | F13: 10.8 | G13: 1510 | H13: 15.95
A14: Stainless clad steel rod | B14: 9.8 | C14: 1400 | D14: 14.72 | E14: Varilla de acero revestido en acero inoxidable | F14: 9.8 | G14: 1400 | H14: 14.72
A15: Zinc-coated steel rod | B15: 8.6 | C15: 419 | D15: 28.96 | E15: Varilla de acero galvanizado | F15: 8.6 | G15: 419 | H15: 28.96
A16: Stainless steel 304 | B16: 2.4 | C16: 1400 | D16: 30.05 | E16: Acero inoxidable 304 | F16: 2.4 | G16: 1400 | H16: 30.05
A17: a See 11.3.3 for comments concerning material selection. | E17: a See 11.3.3 for comments concerning material selection.
H23: Agradezco cualquier sugerencia para mejorar este programa
H24: Gregor Rojas
F51: ='Menu principal'!U14 -> 1
E52: =IF(F51=1,H3,IF(F51=2,H4,IF(F51=3,H5,IF(F51=4,H6,IF(F51=5,H7,IF(F51=6,H8,IF(F51=7,H9,IF(F51=8,H10,IF(F51=9,H11,IF(F51=10,H12,IF(F51=11,H13,IF(F51=12,H14,IF(F51=13,H14,IF(F51=14,H16,"Seleccione un material")))))))))))))) -> 7

Sheet TABLA 7
A1: TABLE 7 IEEE 80-2000 TYPICAL SURFACE MATERIAL RESISTIVITIES
A2: Number | B2: Description of surface material (U.S. state where found) | C2: Resistivity of sample Ω·m
C3: Dry | D3: Wet
A4: 1 | B4: Crusher run granite with fines (N.C.) | C4: 140 × 106 | D4: 1300 (ground water, 45 Ω·m)
A5: 2 | B5: 1.5 in (0.04 m) crusher run granite (Ga.) with fines | C5: 4000 | D5: 1200 (rain water, 100 W)
A6: 3 | B6: 0.75–1 in (0.02–0.025 m) granite (Calif.) with fines | C6: — | D6: 6513 (10 min after 45 Ω·m water drained)
A7: 4 | B7: #4 (1 -2 in) (0.025-0.05 m) washed granite (Ga.) | C7: 1.5 × 106 to 4.5 × 106 | D7: 5000 (rain water, 100 Ω·m)
A8: 5 | B8: #3 (2–4 in) (0.05-0.1 m) washed granite (Ga.) | C8: 2.6 × 106 to 3 × 106 | D8: 10 000 (Rain water, 100 Ω·m)
A9: 6 | B9: Size unknown, washed limestone (Mich.) | C9: 7 × 106 | D9: 2000–3000 (ground water, 45 Ω·m)
A10: 7 | B10: Washed granite, similar to 0.75 in (0.02 m) gravel | C10: 2× 106 | D10: 10000
A11: 8 | B11: Washed granite, similar to pea gravel | C11: 40× 106 | D11: 5000
A12: 9 | B12: #57 (0.75 in) (0.02 m) washed granite (N.C.) | C12: 190× 106 | D12: 8000 (ground water, 45 Ω·m)
A13: 10 | B13: Asphalt | C13: 2 × 106 to 30 × 106 | D13: 10 000 to 6 × 106
A14: 11 | B14: Concrete | C14: 1 × 106 to 1 × 109a | D14: 21 to 100
A15: aOven dried concrete (Hammond and Robson [B78]). Values for air-cured concrete can be much lower due to moisture content
D23: Agradezco cualquier sugerencia para mejorar este programa
D24: Gregor Rojas

Sheet TABLA 10
A1: TABLE 10 IEEE 80-2000 TYPICAL VALUES OF Df
A2: Fault duration, tf | C2: Decrement factor, Df
A3: Seconds | B3: Cycles at 60 Hz | C3: X/R = 10 | D3: X/R = 20 | E3: X/R = 30 | F3: X/R = 40
A4: 0.00833 | B4: 0.5 | C4: 1.576 | D4: 1.648 | E4: 1.675 | F4: 1.688 | M4: =A4&" seg" -> 0.00833 seg | N4: X/R = 10
A5: 0.05 | B5: 3 | C5: 1.232 | D5: 1.378 | E5: 1.462 | F5: 1.515 | M5: =A5&" seg" -> 0,05 seg | N5: X/R = 20
A6: 0.1 | B6: 6 | C6: 1.125 | D6: 1.232 | E6: 1.316 | F6: 1.378 | M6: 0,1 seg | N6: X/R = 30
A7: 0.2 | B7: 12 | C7: 1.064 | D7: 1.125 | E7: 1.181 | F7: 1.232 | M7: 0,2 seg | N7: X/R = 40
A8: 0.3 | B8: 18 | C8: 1.043 | D8: 1.085 | E8: 1.125 | F8: 1.163 | M8: 0,3 seg
A9: 0.4 | B9: 24 | C9: 1.033 | D9: 1.064 | E9: 1.095 | F9: 1.125 | M9: 0,4 seg
A10: 0.5 | B10: 30 | C10: 1.026 | D10: 1.052 | E10: 1.077 | F10: 1.101 | M10: 0,5 seg
A11: 0.75 | B11: 45 | C11: 1.018 | D11: 1.035 | E11: 1.052 | F11: 1.068 | M11: 0,75 seg
A12: 1 | B12: 60 | C12: 1.013 | D12: 1.026 | E12: 1.039 | F12: 1.052 | M12: 1 seg
F19: Agradezco cualquier sugerencia para mejorar este programa
F20: Gregor Rojas

Sheet TABLA 12
A1: TABLE 12 IEEE 80-2000 INDEX OF DESIGN PARAMETERS | D1: TABLA 12 IEEE 80-2000 INDICE DE PARAMETROS PARA DISEÑO
A2: Symbol | B2: Description | C2: Clause number | D2: Simbolo | E2: Descripción | F2: Número de sección
A3: ρ | B3: Soil resistivity, Ω·m | C3: Clause 13 | D3: ρ | E3: Resistividad del suelo, Ω · m | F3: Clause 13
A4: ρs | B4: Surface layer resistivity, Ω·m | C4: 7.4, 12.5 | D4: ρs | E4: Resistividad de la capa superficie, Ω · m | F4: 7.4, 12.5
A5: 3I0 | B5: Symmetrical fault current in substation for conductor sizing, A | C5: 15.3 | D5: 3I0 | E5: Corriente de falla simétrica en la subestación para el dimensionamiento del conductor, A | F5: 15.3
A6: A | B6: Total area enclosed by ground grid, m2 | C6: 14.2 | D6: A | E6: Area total encerrada por malla de tierra, m2 | F6: 14.2
A7: Cs | B7: Surface layer derating factor | C7: 7.4 | D7: Cs | E7: Factor de reducción de la capa superficial | F7: 7.4
A8: d | B8: Diameter of grid conductor, m | C8: 16.5 | D8: d | E8: Diámetro del conductor de malla, m | F8: 16.5
A9: D | B9: Spacing between parallel conductors, m | C9: 16.5 | D9: D | E9: Distancia entre conductores paralelos, m | F9: 16.5
A10: Df | B10: Decrement factor for determining IG | C10: 15.1.4, 15.10 | D10: Df | E10: Factor de decremento para determinar IG | F10: 15.1.4, 15.10
A11: Dm | B11: Maximum distance between any two points on the grid, m | C11: 16.5 | D11: Dm | E11: Distancia máxima entre dos puntos cualesquiera de la malla, m | F11: 16.5
A12: Em | B12: Mesh voltage at the center of the corner mesh for the simplified method, V | C12: 16.5 | D12: Em | E12: Voltaje de malla en el centro de la malla de la esquina para el método simplificado, V | F12: 16.5
A13: Es | B13: Step voltage between a point above the outer corner of the grid and a point 1 m diagonally outside the grid for the simplified method, V | C13: 16.5 | D13: Es | E13: Tensión de paso entre un punto por encima de la esquina exterior de la malla y un punto a 1 m en diagonal fuera de la malla para el método simplificado, V | F13: 16.5
A14: Estep50 | B14: Tolerable step voltage for human with 50 kg body weight, V | C14: 8.3 | D14: Estep50 | E14: Tensión de paso tolerable para personas con 50 kg de peso corporal, V | F14: 8.3
A15: Estep70 | B15: Tolerable step voltage for human with 70 kg body weight, V | C15: 8.3 | D15: Estep70 | E15: Tensión de paso tolerable para personas con 70 kg de peso corporal, V | F15: 8.3
A16: Etouch50 | B16: Tolerable touch voltage for human with 50 kg body weight, V | C16: 8.3 | D16: Etouch50 | E16: Tensión de contacto tolerable para personas con 50 kg de peso corporal, V | F16: 8.3
A17: Etouch70 | B17: Tolerable touch voltage for human with 70 kg body weight, V | C17: 8.3 | D17: Etouch70 | E17: Tensión de contacto tolerable para personas con 70 kg de peso corporal, V | F17: 8.3
A18: h | B18: Depth of ground grid conductors, m | C18: 14.2 | D18: h | E18: Profundidad en el suelo del conductor de malla, m | F18: 14.2
A19: hs | B19: Surface layer thickness, m | C19: 7.4 | D19: hs | E19: Espesor de la capa superficial, m | F19: 7.4
A20: IG | B20: Maximum grid current that flows between ground grid and surrounding earth (including dc offset), A | C20: 15.1.4 | D20: IG | E20: Corriente de malla máxima que fluye entre la malla de tierra y la tierra circundante (incluyendo el desplazamiento DC) | F20: 15.1.4
A21: Ig | B21: Symmetrical grid current, A | C21: 15.1.6 | D21: Ig | E21: Corriente de malla simétrica, A | F21: 15.1.6
A22: K | B22: Reflection factor between different resistivities | C22: 7.4 | D22: K | E22: Factor de reflexión entre las diferentes resistividades | F22: 7.4
A23: Kh | B23: Corrective weighting factor that emphasizes the effects of grid depth, simplified method | C23: 16.5 | D23: Kh | E23: Factor de ponderación correctiva que hace hincapié en los efectos de profundidad de la malla, método simplificado | F23: 16.5
A24: Ki | B24: Correction factor for grid geometry, simplified method | C24: 16.5 | D24: Ki | E24: Factor de corrección de la geometría de la malla, metodo simplificado | F24: 16.5
A25: Kii | B25: Corrective weighting factor that adjusts for the effects of inner conductors on the corner mesh, simplified method | C25: 16.5 | D25: Kii | E25: Factor de ponderación correctiva que se ajusta por los efectos de intrinsicos del conductor en las esquimas de la malla, método simplificado | F25: 16.5
A26: Km | B26: Spacing factor for mesh voltage, | C26: 16.5 | D26: Km | E26: Factor de espaciado para la tensión de malla, | F26: 16.5
A27: Ks | B27: Spacing factor for step voltage, | C27: 16.5 | D27: Ks | E27: Factor de espaciado para la tensión de paso, | F27: 16.5
A28: Lc | B28: Total length of grid conductor, m | C28: 14.3 | D28: Lc | E28: Longitud total del conductor de la malla, m | F28: 14.3
A29: LM | B29: Effective length of Lc + LR for mesh | C29: 16.5 | D29: LM | E29: Longitud efectiva de Lc + LR para malla | F29: 16.5
A30: LR | B30: Total length of ground rods, m | C30: 16.5 | D30: LR | E30: Longitud total de las barras de tierra, m | F30: 16.5
A31: Lr | B31: Length of ground rod at each location, m | C31: 14.3, 16.5 | D31: Lr | E31: Longitud de la barra de tierra en cada lugar, m | F31: 14.3, 16.5
A32: LS | B32: Effective length of L + L for step voltage, m | C32: 16.6 | D32: LS | E32: Longitud efectiva de L + L para la tensión de paso, m | F32: 16.6
A33: LT | B33: Total effective length of grounding system conductor, including grid and ground rods, m | C33: 14.2 | D33: LT | E33: Longitud efectiva total del conductor de puesta a tierra, incluyendo las barras de la malla y de tierra, m | F33: 14.2
A34: Lx | B34: Maximum length of grid conductor in x direction, m | C34: 16.5 | D34: Lx | E34: Longitud máxima del conductor de malla en la dirección x, m | F34: 16.5
A35: Ly | B35: Maximum length of grid conductors in y direction, m | C35: 16.5 | D35: Ly | E35: Longitud máxima del conductor de la malla en dirección Y, m | F35: 16.5
A36: n | B36: Geometric factor composed of factors na, nb, nc, and nd | C36: 16.5 | D36: n | E36: Factor geométrico compuesto por los factores: na, nb, nc y nd | F36: 16.5
A37: nR | B37: Number of rods placed in area A | C37: 14.3 | D37: nR | E37: Número de barras colocadas en la zona A | F37: 14.3
A38: Rg | B38: Resistance of grounding system, Ω | C38: 14.1–14.4 | D38: Rg | E38: Resistencia del sistema de puesta a tierra, Ω | F38: 14.1–14.4
A39: Sf | B39: Fault current division factor (split factor) | C39: 15.1.3 | D39: Sf | E39: Factor de division de corriente de falla (factor de división) | F39: 15.1.3
A40: tc | B40: Duration of fault current for sizing ground conductor, s | C40: 11.3 | D40: tc | E40: Duración de la corriente de falla para el dimensionamiento del conductor de tierra, s | F40: 11.3
A41: tf | B41: Duration of fault current for determining decrement factor, s | C41: 15.1 | D41: tf | E41: Duración de la corriente de falla para determinar el factor de decremento, s | F41: 15.1
A42: ts | B42: Duration of shock for determining allowable body current, s | C42: 5.2–6.3 | D42: ts | E42: Duración de shock para la determinación de la corriente permisible del cuerpo, s | F42: 5.2–6.3
F47: Agradezco cualquier sugerencia para mejorar este programa
F48: Gregor Rojas

Sheet figuras
C2: GEOMETRIA DE LA MALLA DE FORMA CUADRADA
D3: FIGURA 1
F4: ='Menu principal'!F20&" m (a)" -> 5 m (a)
E5: ='Menu principal'!F21&" m (b)" -> 5 m (b)
S16: ='Menu principal'!$F$24&" m" -> 1 m
L17: VISTA DE PLANTA | R17: ='Menu principal'!$F$24&" m" -> 1 m
F20: Nivel del suelo
D21: ='Menu principal'!$F$25&" cm" -> 30 cm | S21: ='Menu principal'!$F$11&" cm" -> 5 cm
L23: VISTA LATERAL
B31: GEOMETRIA DE LA MALLA DE FORMA RECTANGULAR
B32: FIGURA 2
D33: ='Menu principal'!F20&" m (a)" -> 5 m (a)
C34: ='Menu principal'!F21&" m (b)" -> 5 m (b)
V45: ='Menu principal'!$F$24&" m" -> 1 m
L46: VISTA DE PLANTA | U46: ='Menu principal'!F24&" m" -> 1 m
D49: Nivel del suelo
B50: ='Menu principal'!$F$25&" cm" -> 30 cm | V50: ='Menu principal'!$F$11&" cm" -> 5 cm
B53: VISTA LATERAL
B61: GEOMETRIA DE LA MALLA DE FORMA "L"
B62: FIGURA 3
D63: ='Menu principal'!F22&" m (L1)" -> 3 m (L1)
C64: ='Menu principal'!F21&" m (b)" -> 5 m (b) | O64: ='Menu principal'!$F$24&" m" -> 1 m
U68: ='Menu principal'!$F$24&" m" -> 1 m
V70: ='Menu principal'!F23&" m (L2)" -> 3 m (L2)
A72: Calculo malla PAT segu IEEE 80-2000
D76: ='Menu principal'!F20&" m (a)" -> 5 m (a)
B77: VISTA DE PLANTA
D79: Nivel del suelo
B80: ='Menu principal'!$F$25&" cm" -> 30 cm | V80: ='Menu principal'!$F$11&" cm" -> 5 cm
B83: VISTA LATERAL

Sheet materiales
B7: CONDUCTOR DESNUDO | D7: CALIBRE | E7: Kcmil | F7: DIA | G7: AREA | H7: AMP
A8: 2 | B8: CBDES0100002 | C8: CABLE DESNUDO DE COBRE 2 AWG | D8: 2 AWG | E8: 66 | F8: 7.42 | G8: 33.62 | H8: 175
A9: 3 | B9: CBDES0100100 | C9: CABLE DESNUDO DE COBRE 1/0 AWG | D9: 1/0 AWG | E9: 106 | F9: 9.46 | G9: 53.49 | H9: 235
A10: 4 | B10: CBDES0100200 | C10: CABLE DESNUDO DE COBRE 2/0 AWG | D10: 2/0 AWG | E10: 133 | F10: 10.63 | G10: 67.43 | H10: 275
A11: 5 | B11: CBDES0100300 | C11: CABLE DESNUDO DE COBRE 3/0 AWG | D11: 3/0 AWG | E11: 168 | F11: 11.95 | G11: 85 | H11: 320
A12: 6 | B12: CBDES0100400 | C12: CABLE DESNUDO DE COBRE 4/0 AWG | D12: 4/0 AWG | E12: 212 | F12: 13.4 | G12: 107.2 | H12: 370
A13: 7 | B13: CBDES0101250 | C13: CABLE DESNUDO DE COBRE 250 MCM | D13: 250Kcmil | E13: 250 | F13: 14.63 | G13: 126.7 | H13: 410
A14: 8 | B14: CBDES0101300 | C14: CABLE DESNUDO DE COBRE 300 MCM | D14: 300Kcmil | E14: 300 | F14: 16 | G14: 152 | H14: 460
A15: 9 | B15: CBDES0101350 | C15: CABLE DESNUDO DE COBRE 350 MCM | D15: 350Kcmil | E15: 350 | F15: 17.29 | G15: 177 | H15: 510
A16: 10 | B16: CBDES0100500 | C16: CABLE DESNUDO DE COBRE500 MCM | D16: 500Kcmil | E16: 500 | F16: 20.7 | G16: 253 | H16: 630
B17: fuente ELECON
A20: 1 | B20: PTCE000015 | C20: Kit/Soldadura exotermica 15 Grs
A21: 2 | B21: PTCE000025 | C21: Kit/Soldadura exotermica 25 Grs
A22: 3 | B22: PTCE000032 | C22: Kit/Soldadura exotermica 32 Grs
A23: 4 | B23: PTCE000045 | C23: Kit/Soldadura exotermica 45 Grs
A24: 5 | B24: PTCE000065 | C24: Kit/Soldadura exotermica 65 Grs
A25: 6 | B25: PTCE000090 | C25: Kit/Soldadura exotermica 90 Grs
A26: 7 | B26: PTCE000115 | C26: Kit/Soldadura exotermica 115 Grs
A27: 8 | B27: PTCE000150 | C27: Kit/Soldadura exotermica 150 Grs
A28: 9 | B28: PTCE000200 | C28: Kit/Soldadura exotermica 200 Grs
A29: 10 | B29: PTCE000250 | C29: Kit/Soldadura exotermica 250 Grs
B30: fuente GEDISA
A33: 1 | B33: PTXSH035035 | C33: MOLDE EQUIS CARTUCHO | D33: 2 AWG | F33: 90
A34: 2 | B34: PTXSH050050 | C34: MOLDE EQUIS CARTUCHO | D34: 1/0 AWG | F34: 150
A35: 3 | B35: PTXSH070070 | C35: MOLDE EQUIS CARTUCHO | D35: 2/0 AWG | F35: 200
A36: 4 | B36: PTXSH095095 | C36: MOLDE EQUIS CARTUCHO | D36: 3/0 AWG | F36: 250
A37: 5 | B37: PTXSH100100 | C37: MOLDE EQUIS CARTUCHO | D37: 4/0 AWG | F37: 250
A38: 6 | B38: PTXSH120120 | C38: MOLDE EQUIS CARTUCHO | D38: 250Kcmil | F38: 2X150
A39: 7 | B39: PTXSH150150 | C39: MOLDE EQUIS CARTUCHO | D39: 300Kcmil | F39: 2X200
A40: 8 | B40: PTXSH185185 | C40: MOLDE EQUIS CARTUCHO | D40: 350Kcmil
B41: PTXSH240240 | C41: MOLDE EQUIS CARTUCHO | D41: 500Kcmil
A43: 1 | B43: PTCTH035035 | C43: MOLDE EQUIS CARTUCHO | D43: 2 AWG | F43: 32
A44: 2 | B44: PTCTH050050 | C44: MOLDE EQUIS CARTUCHO | D44: 1/0 AWG | F44: 90
A45: 3 | B45: PTCTH070070 | C45: MOLDE EQUIS CARTUCHO | D45: 2/0 AWG | F45: 90
A46: 4 | B46: PTCTH095095 | C46: MOLDE EQUIS CARTUCHO | D46: 3/0 AWG | F46: 115
A47: 5 | B47: PTCTH100100 | C47: MOLDE EQUIS CARTUCHO | D47: 4/0 AWG | F47: 150
A48: 6 | B48: PTCTH120120 | C48: MOLDE EQUIS CARTUCHO | D48: 250Kcmil | F48: 150
A49: 7 | B49: PTCTH150150 | C49: MOLDE EQUIS CARTUCHO | D49: 300Kcmil | F49: 200
A50: 8 | B50: PTCTH185185 | C50: MOLDE EQUIS CARTUCHO | D50: 350Kcmil | F50: 200
B51: PTCTH240240 | C51: MOLDE EQUIS CARTUCHO | D51: 500Kcmil | F51: 2X150
B52: fuente GEDISA

Sheet Instrucciones
B1: PROGRAMA DE CÁLCULO DE LA MALLA DE PUESTA A TIERRA BASADO EN LA IEEE 80-2000
B2: INSTRUCTIVO DE USO DEL PROGRAMA
A3: 1 | B3: Asegúrese de que las MACROS estén habilitadas
A4: 2 | B4: En la parte denominada: DATOS PARA EL CÁLCULO DE LA MALLA DE PUESTA A TIERRA ingresar los datos del proyecto
A5: 3 | B5: Busque el valor de la resistencia requerida según el tipo de proyecto en la casilla "Resistencia requerida según aplicación menor a" mediante la selección en lista desplegable para tal fin.
A6: 4 | B6: Ajuste el valor de la resistividad del suelo en la casilla Resistividad aparente del terreno (Ω.m) mediante el accionamiento de la barra de desplazamiento para tal fin que va desde 10 hasta 20.000.
A7: 5 | B7: Ajuste el valor de la corriente de falla If en la casilla Corriente de falla a tierra simétrica rms (A) mediante el accionamiento de la barra de desplazamiento para tal fin que va desde 1000 a 60.000
A8: 6 | B8: Ajuste el valor del tiempo de despeje de la falla tc en la casilla Tiempo de despeje de la falla (ms) mediante el accionamiento de la barra de desplazamiento para tal fin que va desde 50 hasta 3.000.
A9: 7 | B9: Si existe en su diseño una capa superficial haga Crick sobre el recuadro en Marque la casilla si existe una capa superficial, deberá cambiar la indicación de "NO" a "SÍ"
A10: 8 | B10: Ajuste el valor de la capa superficial ρs en la casilla Resistividad de la capa superficial (Ω.m) Ver tabla 7 mediante el accionamiento de la barra de desplazamiento para tal fin que va desde 100 hasta 60.000.
A11: 9 | B11: Haga "Crick" en el botón "Tabla 7 Pag. 52 IEEE 80-2000" para que el programa lo traslade a la TABLA 7 y poder tomar referencias de los valores típicos para esta capa según el material que se seleccione
A12: 10 | B12: Ajuste el valor del espesor de la capa superficial hs en la casilla Espesor de la capa superficial hs (cm) mediante el accionamiento de la barra de desplazamiento para tal fin que va desde 5 hasta 300.
A13: 11 | B13: En la parte denominada: CARACTERISTICAS DEL CONDUCTOR DE LA MALLA DE PAT seleccionar el tipo de conductor a utilizar en el proyecto.
A14: 12 | B14: Busque el conductor requerido para el proyecto en la casilla "Tipo de conductor seleccionado" mediante la selección en lista desplegable para tal fin.
A15: 13 | B15: Haga "Crick" en el botón "Tabla 2 Pág.. 44 IEEE 80-2000" para que el programa lo traslade a la TABLA 2 y poder tomar referencias de valores típicos para los distintos tipos de conductores
A16: 14 | B16: En base a los datos seleccionados el programa automáticamente calculará el calibre conductor a utilizar en la malla de puesta a tierra y le dará el código GEDISA del conductor.
A17: 15 | B17: En la parte denominada: GEOMETRIA DE LA MALLA ingresar la forma y las dimensiones de los componentes de la malla
A18: 16 | B18: Elija la forma del diseño de la malla haciendo Crick sobre el circulo para seleccionar: cuadrado, rectangular o en forma de L
A19: 17 | B19: Ajuste el valor del largo de la forma elegida en la casilla correspondiente mediante el accionamiento de la barra de desplazamiento para tal fin que va desde 5 hasta 500.
A20: 18 | B20: Si selecciono la forma cuadrada el ajuste del ancho en la casilla correspondiente se realizara de manera automática, no requiere ajuste.
A21: 19 | B21: Si selecciono la forma rectangular el ajuste del ancho en la casilla correspondiente será mediante el accionamiento de la barra de desplazamiento para tal fin que va desde 5 hasta 500.
A22: 20 | B22: Si selecciono la forma en L, el ajuste del ancho en la casilla correspondiente será mediante el accionamiento de la barra de desplazamiento para tal fin que va desde 5 hasta 500. Para ajustar los valores de las longitudes L1 y L2 se procede de forma análoga.
A23: 21 | B23: Ajuste los valores de la cuadricula en la casilla Longitud de los lados de la cuadrícula (m) mediante el accionamiento de la barra de desplazamiento para tal fin que va desde 1 hasta 30
A24: 22 | B24: Haga "Crick" en el botón "Ver figura X" para que el programa lo traslade a la figura seleccionada y poder observar la conformación de la malla
A25: 23 | B25: Si su diseño contempla el empleo de barras copperweld haga click sobre el recuadro de la casilla "Empleo de Barras Copperweld" segidamente aparecera la afirmación SI
A26: 24 | B26: Elija el modelo de barra copperweld que se ajusta a su proyecto en la casilla "Modelo de barra copperweld" mediante la selección en lista desplegable para tal fin. Automaticamente aparecera en la casilla "Diámetro de la Barra Copperweld o jabalina (mm)" el diametro correspondiente
A27: 25 | B27: Ajuste la longitud de la barra en la casilla "Longitud de la Barra Copperweld o jabalina (m)" mediante el accionamiento de la barra de desplazamiento para tal fin que va desde 2,4 hasta 12
A28: 26 | B28: Coloque la cantidad de barras en la casilla "Número de barras copperweld colocadas en el área A" mediante el accionamiento de la barra de desplazamiento para tal fin que va desde 1 hasta 300
A29: 27 | B29: Realizados los pasos anteriores el programa calculara automáticamente los otros parametros geometricos de la malla
A30: 28 | B30: El programa calculara automáticamente las cantidades de cartuchos soldadura exotermica necesarios para realizar las conexiones de la malla tanto para las TEE como las EQUIS y dara los códigos GEDISA que corresponden para estos materiales
A31: 29 | B31: Para obtener los voltajes permisibles de paso y toque en función del peso de una persona elija el peso que se ajusta a su proyecto en la casilla "Peso de la persona para estimación " mediante la selección en lista desplegable para tal fin. Automaticamente el programa realizara los calculos de estos y de los voltajes reales o maximos. De igual forma realizara las comparaciones para indicarle si se debe realiuzar algun cambio o ajuste para que su diseño cumpla con la norma
B40: Agradezco cualquier sugerencia para mejorar este programa
B41: Gregor Rojas
